[Event "Early-Titled-Tuesday-Blitz-March-19-2024"]
[Site "Chess.com"]
[Date "2024.03.19"]
[Round "3"]
[White "nekotyanof"]
[Black "AsaHoffmann"]
[Result "1-0"]
[WhiteElo "2650"]
[BlackElo "2444"]
[TimeControl "180+1"]
[EndTime "8:28:17 PDT"]
[Termination "nekotyanof won by resignation"]

1. e4 {[%clk 0:03:00.9]} 1... d6 {[%clk 0:02:51.1]} 2. d4 {[%clk 0:03:00.3]}
2... c6 {[%clk 0:02:47.8]} 3. Nc3 {[%clk 0:03:00.5]} 3... a6 {[%clk 0:02:47.3]}
4. a4 {[%clk 0:02:59.7]} 4... Nf6 {[%clk 0:02:45.9]} 5. Nf3 {[%clk 0:03:00.3]}
5... Bg4 {[%clk 0:02:43.9]} 6. h3 {[%clk 0:02:57.9]} 6... Bh5 {[%clk 0:02:43.7]}
7. g4 {[%clk 0:02:55.5]} 7... Bg6 {[%clk 0:02:43.4]} 8. Bd3 {[%clk 0:02:55.5]}
8... e6 {[%clk 0:02:43.1]} 9. h4 {[%clk 0:02:55.5]} 9... d5 {[%clk 0:02:42.6]}
10. e5 {[%clk 0:02:43.2]} 10... Nfd7 {[%clk 0:02:39.7]} 11. h5 {[%clk
0:02:38.8]} 11... Bxd3 {[%clk 0:02:38.7]} 12. Qxd3 {[%clk 0:02:39.7]} 12... h6
{[%clk 0:02:37.8]} 13. Ne2 {[%clk 0:02:39.6]} 13... c5 {[%clk 0:02:37.6]} 14. c3
{[%clk 0:02:39.9]} 14... Nc6 {[%clk 0:02:37.5]} 15. Bd2 {[%clk 0:02:39.3]} 15...
Qb6 {[%clk 0:02:35.1]} 16. O-O {[%clk 0:02:35.2]} 16... cxd4 {[%clk 0:02:32.1]}
17. cxd4 {[%clk 0:02:32.4]} 17... Be7 {[%clk 0:02:18.5]} 18. Kg2 {[%clk
0:02:28.4]} 18... O-O-O {[%clk 0:02:11.7]} 19. a5 {[%clk 0:02:20.9]} 19... Qb5
{[%clk 0:02:04.8]} 20. Qxb5 {[%clk 0:02:20.3]} 20... axb5 {[%clk 0:02:04.6]} 21.
Rfc1 {[%clk 0:02:15.4]} 21... Kb8 {[%clk 0:02:04.2]} 22. a6 {[%clk 0:02:13.8]}
22... Rc8 {[%clk 0:02:02.4]} 23. Nc3 {[%clk 0:01:55.5]} 23... bxa6 {[%clk
0:01:53.8]} 24. Rxa6 {[%clk 0:01:53.9]} 24... Kb7 {[%clk 0:01:53.9]} 25. Rca1
{[%clk 0:01:49.1]} 25... b4 {[%clk 0:01:44.8]} 26. Nb5 {[%clk 0:01:21.3]} 26...
Ra8 {[%clk 0:01:43.2]} 27. Rxa8 {[%clk 0:01:21.4]} 27... Rxa8 {[%clk 0:01:42.1]}
28. Rxa8 {[%clk 0:01:22.3]} 28... Kxa8 {[%clk 0:01:42.1]} 29. Nc7+ {[%clk
0:01:23.2]} 29... Kb7 {[%clk 0:01:40.2]} 30. Ne8 {[%clk 0:01:24.1]} 30... Bf8
{[%clk 0:01:37.4]} 31. g5 {[%clk 0:01:22.7]} 31... Nb6 {[%clk 0:01:05.6]} 32.
gxh6 {[%clk 0:01:13.8]} 32... gxh6 {[%clk 0:01:05.3]} 33. Nd6+ {[%clk
0:01:08.8]} 33... Bxd6 {[%clk 0:01:00.4]} 34. exd6 {[%clk 0:01:09.7]} 34... Nc4
{[%clk 0:00:50]} 35. Bxh6 {[%clk 0:01:09.4]} 35... Nxb2 {[%clk 0:00:49.1]} 36.
Bc1 {[%clk 0:01:05.3]} 36... Nd3 {[%clk 0:00:48.4]} 37. h6 {[%clk 0:01:05.7]}
37... Nxc1 {[%clk 0:00:45.3]} 38. h7 {[%clk 0:01:05.1]} 38... b3 {[%clk
0:00:45.4]} 39. h8=Q {[%clk 0:01:05.2]} 39... b2 {[%clk 0:00:45.5]} 40. Qh7
{[%clk 0:00:39.1]} 40... Nd8 {[%clk 0:00:34.7]} 41. Qb1 {[%clk 0:00:37.8]} 1-0

[Event "Early-Titled-Tuesday-Blitz-March-19-2024"]
[Site "Chess.com"]
[Date "2024.03.19"]
[Round "3"]
[White "DenLaz"]
[Black "GnowReopard"]
[Result "1-0"]
[WhiteElo "3078"]
[BlackElo "2807"]
[TimeControl "180+1"]
[EndTime "8:28:22 PDT"]
[Termination "DenLaz won by resignation"]

1. d4 {[%clk 0:03:00.9]} 1... Nf6 {[%clk 0:02:59.3]} 2. c4 {[%clk 0:03:01.6]}
2... g6 {[%clk 0:02:56.4]} 3. g3 {[%clk 0:03:01.7]} 3... Bg7 {[%clk 0:02:55.4]}
4. Bg2 {[%clk 0:03:02.3]} 4... d5 {[%clk 0:02:54.1]} 5. cxd5 {[%clk 0:03:02.4]}
5... Nxd5 {[%clk 0:02:55]} 6. Nf3 {[%clk 0:03:02.9]} 6... Nb6 {[%clk 0:02:54.4]}
7. Nc3 {[%clk 0:03:02.7]} 7... Nc6 {[%clk 0:02:54.8]} 8. e3 {[%clk 0:03:03.4]}
8... O-O {[%clk 0:02:54.8]} 9. O-O {[%clk 0:03:04]} 9... Re8 {[%clk 0:02:54]}
10. Re1 {[%clk 0:03:03.8]} 10... a5 {[%clk 0:02:53]} 11. h3 {[%clk 0:02:52.8]}
11... a4 {[%clk 0:02:40.4]} 12. Qc2 {[%clk 0:02:45.2]} 12... Be6 {[%clk
0:02:31.8]} 13. Rd1 {[%clk 0:02:39.1]} 13... Nb4 {[%clk 0:02:19.5]} 14. Qb1
{[%clk 0:02:38]} 14... Bc4 {[%clk 0:02:13.7]} 15. a3 {[%clk 0:02:32]} 15... N4d5
{[%clk 0:02:10.5]} 16. Nd2 {[%clk 0:02:28.5]} 16... Ba6 {[%clk 0:02:01.3]} 17.
Nde4 {[%clk 0:02:25.1]} 17... Nxc3 {[%clk 0:01:57.9]} 18. bxc3 {[%clk 0:02:26]}
18... Bc4 {[%clk 0:01:58.2]} 19. Nc5 {[%clk 0:02:25.1]} 19... Nd5 {[%clk
0:01:25.9]} 20. Nxb7 {[%clk 0:02:00.2]} 20... Qc8 {[%clk 0:01:25.3]} 21. Nc5
{[%clk 0:01:51.4]} 21... Nxc3 {[%clk 0:01:24.6]} 22. Qc2 {[%clk 0:01:50.8]}
22... Nxd1 {[%clk 0:01:20.9]} 23. Qxc4 {[%clk 0:01:50.5]} 23... Ra5 {[%clk
0:01:14.1]} 24. Bd2 {[%clk 0:01:45.2]} 24... Nb2 {[%clk 0:01:11.8]} 25. Qb4
{[%clk 0:01:44.2]} 25... Rxc5 {[%clk 0:01:03.5]} 26. Qxc5 {[%clk 0:01:45.1]}
26... Qe6 {[%clk 0:01:00.6]} 27. Qc2 {[%clk 0:01:24.9]} 27... Nc4 {[%clk
0:00:55]} 28. Qxa4 {[%clk 0:01:22.8]} 28... Rb8 {[%clk 0:00:49.3]} 29. Bb4
{[%clk 0:01:22.8]} 29... Nxe3 {[%clk 0:00:45.8]} 30. Re1 {[%clk 0:01:17.6]}
30... Bxd4 {[%clk 0:00:45.1]} 31. fxe3 {[%clk 0:01:17.6]} 31... Bxe3+ {[%clk
0:00:45.2]} 32. Kh1 {[%clk 0:01:18]} 32... Qb6 {[%clk 0:00:18.9]} 33. Qb3 {[%clk
0:01:01.1]} 33... Bg5 {[%clk 0:00:14.5]} 34. Qc4 {[%clk 0:00:56.1]} 34... e6
{[%clk 0:00:09.2]} 35. Rf1 {[%clk 0:00:55.8]} 35... Qe3 {[%clk 0:00:06.4]} 36.
Qxc7 {[%clk 0:00:53.9]} 1-0

[Event "Early-Titled-Tuesday-Blitz-March-19-2024"]
[Site "Chess.com"]
[Date "2024.03.19"]
[Round "3"]
[White "Crazy_girl99"]
[Black "VitaliyBernadskiy"]
[Result "0-1"]
[WhiteElo "2609"]
[BlackElo "2869"]
[TimeControl "180+1"]
[EndTime "8:28:27 PDT"]
[Termination "VitaliyBernadskiy won by resignation"]

1. e4 {[%clk 0:03:00.9]} 1... Nc6 {[%clk 0:03:00]} 2. Nf3 {[%clk 0:03:00.6]}
2... d5 {[%clk 0:02:59.7]} 3. exd5 {[%clk 0:02:59.5]} 3... Qxd5 {[%clk
0:03:00.6]} 4. Nc3 {[%clk 0:02:58.9]} 4... Qh5 {[%clk 0:03:00.8]} 5. Be2 {[%clk
0:02:58.3]} 5... Bg4 {[%clk 0:03:00.3]} 6. h3 {[%clk 0:02:57.4]} 6... O-O-O
{[%clk 0:02:59.8]} 7. d3 {[%clk 0:02:57.6]} 7... Nf6 {[%clk 0:02:51.5]} 8. Be3
{[%clk 0:02:55.9]} 8... e5 {[%clk 0:02:51]} 9. Rg1 {[%clk 0:02:47]} 9... Bd7
{[%clk 0:02:36.6]} 10. Nd4 {[%clk 0:02:36.4]} 10... Qg6 {[%clk 0:02:31.8]} 11.
Nxc6 {[%clk 0:02:36.2]} 11... Bxc6 {[%clk 0:02:32.5]} 12. Qd2 {[%clk 0:02:14.6]}
12... Bb4 {[%clk 0:02:32.1]} 13. a3 {[%clk 0:02:14.3]} 13... Ne4 {[%clk
0:02:30.6]} 14. axb4 {[%clk 0:02:01.6]} 14... Nxd2 {[%clk 0:02:30.1]} 15. Rxa7
{[%clk 0:01:59.8]} 15... Nf3+ {[%clk 0:02:21.9]} 16. Bxf3 {[%clk 0:01:50.3]}
16... Bxf3 {[%clk 0:02:19.3]} 17. Kd2 {[%clk 0:01:49]} 17... Kd7 {[%clk
0:02:06.6]} 18. Ra5 {[%clk 0:01:31.1]} 18... Rhe8 {[%clk 0:01:58.2]} 19. Na4
{[%clk 0:01:27.9]} 19... b6 {[%clk 0:01:56.2]} 20. Ra7 {[%clk 0:01:27.9]} 20...
Kc8 {[%clk 0:01:48]} 21. Nc3 {[%clk 0:01:13.3]} 21... Bb7 {[%clk 0:01:46.8]} 22.
g4 {[%clk 0:00:59.8]} 22... f5 {[%clk 0:01:45.6]} 23. f3 {[%clk 0:00:45.8]}
23... f4 {[%clk 0:01:38.9]} 24. Bf2 {[%clk 0:00:43.8]} 24... Qc6 {[%clk
0:01:23.7]} 25. Ne4 {[%clk 0:00:38.5]} 25... Qb5 {[%clk 0:01:23.2]} 26. Kc3
{[%clk 0:00:21.9]} 26... Re6 {[%clk 0:01:19]} 27. Rga1 {[%clk 0:00:17.8]} 27...
Bxe4 {[%clk 0:01:13.6]} 28. fxe4 {[%clk 0:00:17.5]} 28... Rc6+ {[%clk
0:01:13.7]} 29. Kb3 {[%clk 0:00:18]} 29... Rxd3+ {[%clk 0:01:09]} 30. cxd3
{[%clk 0:00:18.1]} 30... Qxd3+ {[%clk 0:01:09.9]} 31. Ka2 {[%clk 0:00:16.9]}
31... Qxe4 {[%clk 0:01:07.9]} 32. Rd1 {[%clk 0:00:14]} 32... Qc4+ {[%clk
0:01:04.1]} 33. Ka1 {[%clk 0:00:14.4]} 33... Qxb4 {[%clk 0:00:58.5]} 34. Bh4
{[%clk 0:00:11]} 34... Kb8 {[%clk 0:00:52.4]} 35. Ra3 {[%clk 0:00:10.8]} 35...
Kb7 {[%clk 0:00:49.1]} 36. Rd8 {[%clk 0:00:01.7]} 36... Rc1+ {[%clk 0:00:48.9]}
37. Ka2 {[%clk 0:00:02.4]} 37... Qc4+ {[%clk 0:00:49.3]} 38. Rb3 {[%clk
0:00:03]} 38... Ra1+ {[%clk 0:00:47]} 39. Kxa1 {[%clk 0:00:02.9]} 39... Qxb3
{[%clk 0:00:47.4]} 40. Re8 {[%clk 0:00:03.5]} 40... Qa4+ {[%clk 0:00:46.9]} 0-1

[Event "Early-Titled-Tuesday-Blitz-March-19-2024"]
[Site "Chess.com"]
[Date "2024.03.19"]
[Round "3"]
[White "GMG"]
[Black "MaxLeto"]
[Result "1-0"]
[WhiteElo "2779"]
[BlackElo "2511"]
[TimeControl "180+1"]
[EndTime "8:28:29 PDT"]
[Termination "GMG won by checkmate"]

1. d4 {[%clk 0:03:00.9]} 1... h5 {[%clk 0:02:41.9]} 2. e4 {[%clk 0:02:59.2]}
2... h4 {[%clk 0:02:42.8]} 3. Nc3 {[%clk 0:02:57.8]} 3... d6 {[%clk 0:02:41.3]}
4. h3 {[%clk 0:02:57.6]} 4... e5 {[%clk 0:02:41.7]} 5. Nf3 {[%clk 0:02:57.4]}
5... Nc6 {[%clk 0:02:40.6]} 6. Bb5 {[%clk 0:02:56.9]} 6... exd4 {[%clk
0:02:36.6]} 7. Qxd4 {[%clk 0:02:55.2]} 7... Rh5 {[%clk 0:02:05.1]} 8. Bf4 {[%clk
0:02:45.4]} 8... Rxb5 {[%clk 0:02:00.1]} 9. Qc4 {[%clk 0:02:38.7]} 9... Rxb2
{[%clk 0:01:39.1]} 10. O-O-O {[%clk 0:02:33.4]} 10... Rb4 {[%clk 0:01:32.1]} 11.
Qe2 {[%clk 0:02:33.1]} 11... Be6 {[%clk 0:01:15.7]} 12. a3 {[%clk 0:02:32.1]}
12... Rb6 {[%clk 0:00:54.1]} 13. Rhe1 {[%clk 0:02:16.1]} 13... Qd7 {[%clk
0:00:45.8]} 14. Be3 {[%clk 0:01:17.2]} 14... Ra6 {[%clk 0:00:42.6]} 15. Ng5
{[%clk 0:01:13.8]} 15... O-O-O {[%clk 0:00:34.1]} 16. f4 {[%clk 0:01:10.2]}
16... f6 {[%clk 0:00:16.5]} 17. Nf3 {[%clk 0:01:03.6]} 17... Rxa3 {[%clk
0:00:13.3]} 18. Kb2 {[%clk 0:01:00.6]} 18... Ra5 {[%clk 0:00:07.2]} 19. Ra1
{[%clk 0:01:00.7]} 19... Kb8 {[%clk 0:00:06.1]} 20. Bf2 {[%clk 0:00:49.6]} 20...
d5 {[%clk 0:00:06]} 21. Red1 {[%clk 0:00:39.1]} 21... Qf7 {[%clk 0:00:02.1]} 22.
f5 {[%clk 0:00:35.3]} 22... Bc8 {[%clk 0:00:01.8]} 23. exd5 {[%clk 0:00:33.6]}
23... Ne5 {[%clk 0:00:01.6]} 24. Rxa5 {[%clk 0:00:32.4]} 24... Nxf3 {[%clk
0:00:01.9]} 25. Bxa7+ {[%clk 0:00:31.3]} 25... Ka8 {[%clk 0:00:02.3]} 26. Qb5
{[%clk 0:00:19.4]} 26... c6 {[%clk 0:00:02.5]} 27. Bb6+ {[%clk 0:00:17.9]} 27...
Kb8 {[%clk 0:00:02.6]} 28. Ra8+ {[%clk 0:00:18.1]} 28... Kxa8 {[%clk 0:00:02.9]}
29. Qa5+ {[%clk 0:00:18.8]} 29... Kb8 {[%clk 0:00:03.8]} 30. Qa7# {[%clk
0:00:19.7]} 1-0

[Event "Early-Titled-Tuesday-Blitz-March-19-2024"]
[Site "Chess.com"]
[Date "2024.03.19"]
[Round "3"]
[White "esrosenberg"]
[Black "Kostukov_Alex"]
[Result "1-0"]
[WhiteElo "2444"]
[BlackElo "2247"]
[TimeControl "180+1"]
[EndTime "8:28:29 PDT"]
[Termination "esrosenberg won by resignation"]

1. d4 {[%clk 0:02:59.9]} 1... g6 {[%clk 0:02:52]} 2. e4 {[%clk 0:03:00]} 2... c5
{[%clk 0:02:44.7]} 3. d5 {[%clk 0:02:59.6]} 3... d6 {[%clk 0:02:42.6]} 4. Nc3
{[%clk 0:02:57.6]} 4... Bg7 {[%clk 0:02:43.2]} 5. Bb5+ {[%clk 0:02:56.8]} 5...
Bd7 {[%clk 0:02:40.2]} 6. a4 {[%clk 0:02:57.1]} 6... Nf6 {[%clk 0:02:40]} 7. Nf3
{[%clk 0:02:57.6]} 7... O-O {[%clk 0:02:39.8]} 8. O-O {[%clk 0:02:57.9]} 8...
Na6 {[%clk 0:02:37.9]} 9. Be2 {[%clk 0:02:57.2]} 9... Nc7 {[%clk 0:02:30.2]} 10.
h3 {[%clk 0:02:56.6]} 10... a6 {[%clk 0:02:29.6]} 11. a5 {[%clk 0:02:25.9]}
11... Nb5 {[%clk 0:02:28]} 12. Nd2 {[%clk 0:02:10]} 12... Ne8 {[%clk 0:02:15.7]}
13. Na4 {[%clk 0:01:50.5]} 13... Qxa5 {[%clk 0:02:06.7]} 14. Nc4 {[%clk
0:01:50.8]} 14... Qd8 {[%clk 0:02:04.4]} 15. Nab6 {[%clk 0:01:51.3]} 15... Rb8
{[%clk 0:02:02.8]} 16. Nxd7 {[%clk 0:01:51.6]} 16... Qxd7 {[%clk 0:02:01]} 17.
c3 {[%clk 0:01:52.2]} 17... Qd8 {[%clk 0:01:50.7]} 18. f4 {[%clk 0:01:52.1]}
18... Nbc7 {[%clk 0:01:45.2]} 19. Bf3 {[%clk 0:01:50.8]} 19... e6 {[%clk
0:01:44.7]} 20. f5 {[%clk 0:01:38.7]} 20... exd5 {[%clk 0:01:41.4]} 21. exd5
{[%clk 0:01:39]} 21... Qh4 {[%clk 0:01:15.3]} 22. Qd3 {[%clk 0:01:28.5]} 22...
Nb5 {[%clk 0:01:04.4]} 23. Be3 {[%clk 0:01:14.4]} 23... Qd8 {[%clk 0:00:55.4]}
24. Rae1 {[%clk 0:01:10.4]} 24... Nf6 {[%clk 0:00:55.4]} 25. Bg5 {[%clk
0:01:09.4]} 25... h6 {[%clk 0:00:52.1]} 26. Bh4 {[%clk 0:01:09.3]} 26... g5
{[%clk 0:00:49.9]} 27. Bg3 {[%clk 0:01:09.7]} 27... Qc7 {[%clk 0:00:46]} 28. Re2
{[%clk 0:01:08.9]} 28... Nd7 {[%clk 0:00:45.4]} 29. Rfe1 {[%clk 0:01:07.5]}
29... f6 {[%clk 0:00:40.6]} 30. Re7 {[%clk 0:01:06.4]} 30... Rf7 {[%clk
0:00:36]} 31. Rxf7 {[%clk 0:01:03.5]} 31... Kxf7 {[%clk 0:00:35.6]} 32. Re6
{[%clk 0:01:04.4]} 32... Ne5 {[%clk 0:00:25.3]} 33. Nxe5+ {[%clk 0:01:02.8]}
33... dxe5 {[%clk 0:00:19.2]} 34. d6 {[%clk 0:01:02.8]} 34... Qd8 {[%clk
0:00:17.6]} 35. Qd5 {[%clk 0:00:53]} 35... Kf8 {[%clk 0:00:16.6]} 36. Bh5 {[%clk
0:00:52.4]} 36... Nc7 {[%clk 0:00:11]} 37. dxc7 {[%clk 0:00:51.2]} 37... Qxc7
{[%clk 0:00:06.5]} 38. Rd6 {[%clk 0:00:41.5]} 1-0

[Event "Early-Titled-Tuesday-Blitz-March-19-2024"]
[Site "Chess.com"]
[Date "2024.03.19"]
[Round "3"]
[White "HansOnTwitch"]
[Black "MightyGMpretender"]
[Result "1-0"]
[WhiteElo "3078"]
[BlackElo "2802"]
[TimeControl "180+1"]
[EndTime "8:28:30 PDT"]
[Termination "HansOnTwitch won on time"]

1. e4 {[%clk 0:02:51.9]} 1... c6 {[%clk 0:02:58.7]} 2. d4 {[%clk 0:02:49]} 2...
d5 {[%clk 0:02:58.8]} 3. e5 {[%clk 0:02:49.6]} 3... Bf5 {[%clk 0:02:58.2]} 4.
Nf3 {[%clk 0:02:47.3]} 4... e6 {[%clk 0:02:55.4]} 5. Be2 {[%clk 0:02:47.7]} 5...
Bg6 {[%clk 0:02:55.2]} 6. O-O {[%clk 0:02:47]} 6... Nh6 {[%clk 0:02:55.4]} 7.
Nbd2 {[%clk 0:02:46.8]} 7... Be7 {[%clk 0:02:51.1]} 8. Nb3 {[%clk 0:02:47]} 8...
O-O {[%clk 0:02:49.6]} 9. h3 {[%clk 0:02:42.8]} 9... Nd7 {[%clk 0:02:44.7]} 10.
Bxh6 {[%clk 0:02:39.9]} 10... gxh6 {[%clk 0:02:44.6]} 11. Qd2 {[%clk 0:02:40.5]}
11... Kg7 {[%clk 0:02:42.7]} 12. c3 {[%clk 0:02:40.8]} 12... f6 {[%clk
0:02:37.2]} 13. exf6+ {[%clk 0:02:37.9]} 13... Bxf6 {[%clk 0:02:37.2]} 14. Rae1
{[%clk 0:02:34.7]} 14... Qc7 {[%clk 0:02:37]} 15. Bd3 {[%clk 0:02:33.9]} 15...
Rae8 {[%clk 0:02:34.3]} 16. Bxg6 {[%clk 0:02:33]} 16... hxg6 {[%clk 0:02:34.4]}
17. Re2 {[%clk 0:02:31.2]} 17... e5 {[%clk 0:02:30.3]} 18. dxe5 {[%clk
0:02:31.1]} 18... Nxe5 {[%clk 0:02:24.6]} 19. Nxe5 {[%clk 0:02:31]} 19... Rxe5
{[%clk 0:02:15.7]} 20. Rxe5 {[%clk 0:02:28.8]} 20... Bxe5 {[%clk 0:02:15.9]} 21.
Re1 {[%clk 0:02:28]} 21... Rf7 {[%clk 0:01:41.6]} 22. Nd4 {[%clk 0:02:20.3]}
22... Qd6 {[%clk 0:01:30.4]} 23. Re2 {[%clk 0:02:13.1]} 23... Qf6 {[%clk
0:01:24.2]} 24. Nf3 {[%clk 0:02:08.9]} 24... Bc7 {[%clk 0:01:18.3]} 25. Qe1
{[%clk 0:02:04.2]} 25... Qf4 {[%clk 0:00:59.8]} 26. Re6 {[%clk 0:01:53.6]} 26...
Bb6 {[%clk 0:00:37.2]} 27. Kh1 {[%clk 0:01:35.7]} 27... g5 {[%clk 0:00:28.3]}
28. b4 {[%clk 0:01:15.7]} 28... Qf5 {[%clk 0:00:26.3]} 29. Re5 {[%clk
0:01:12.7]} 29... Qc2 {[%clk 0:00:24.2]} 30. Re2 {[%clk 0:01:12.6]} 30... Qf5
{[%clk 0:00:20.6]} 31. a4 {[%clk 0:01:12]} 31... a5 {[%clk 0:00:17.4]} 32. Re8
{[%clk 0:01:03.6]} 32... axb4 {[%clk 0:00:15.7]} 33. cxb4 {[%clk 0:01:04.5]}
33... Qd7 {[%clk 0:00:09.7]} 34. Qe5+ {[%clk 0:01:02.2]} 34... Kg6 {[%clk
0:00:03.5]} 35. Rg8+ {[%clk 0:01:02]} 35... Rg7 {[%clk 0:00:02.5]} 36. Re8
{[%clk 0:00:54.8]} 36... Bc7 {[%clk 0:00:02.7]} 37. Re6+ {[%clk 0:00:52.9]}
37... Kf7 {[%clk 0:00:02.3]} 38. Qf6+ {[%clk 0:00:44.6]} 38... Kg8 {[%clk
0:00:01.9]} 39. Qxh6 {[%clk 0:00:45.2]} 39... g4 {[%clk 0:00:01.6]} 40. Nd4
{[%clk 0:00:42.1]} 40... gxh3 {[%clk 0:00:01.7]} 41. g3 {[%clk 0:00:42.7]} 1-0

[Event "Early-Titled-Tuesday-Blitz-March-19-2024"]
[Site "Chess.com"]
[Date "2024.03.19"]
[Round "3"]
[White "EternalNight8"]
[Black "AlexandraSamaganova"]
[Result "1-0"]
[WhiteElo "2502"]
[BlackElo "2315"]
[TimeControl "180+1"]
[EndTime "8:28:34 PDT"]
[Termination "EternalNight8 won on time"]

1. d4 {[%clk 0:03:00.9]} 1... Nf6 {[%clk 0:02:59.2]} 2. Bg5 {[%clk 0:03:00.6]}
2... Ne4 {[%clk 0:02:58.5]} 3. Bf4 {[%clk 0:03:00.5]} 3... c5 {[%clk 0:02:56.7]}
4. f3 {[%clk 0:03:00.4]} 4... Qa5+ {[%clk 0:02:54.3]} 5. c3 {[%clk 0:03:00.2]}
5... Nf6 {[%clk 0:02:53.8]} 6. d5 {[%clk 0:03:00.6]} 6... Qb6 {[%clk 0:02:46.8]}
7. e4 {[%clk 0:03:00.6]} 7... Qxb2 {[%clk 0:02:42.3]} 8. Nd2 {[%clk 0:03:00.7]}
8... Qxc3 {[%clk 0:02:39.7]} 9. Bc7 {[%clk 0:03:00.8]} 9... Qe3+ {[%clk
0:02:28.9]} 10. Ne2 {[%clk 0:02:54.2]} 10... g6 {[%clk 0:02:16.7]} 11. Nc4
{[%clk 0:02:44.1]} 11... Qg5 {[%clk 0:02:00.4]} 12. Bf4 {[%clk 0:02:35.3]} 12...
Qh5 {[%clk 0:01:45.6]} 13. Qd2 {[%clk 0:01:53.1]} 13... g5 {[%clk 0:01:15.8]}
14. Bxg5 {[%clk 0:01:47.3]} 14... Bg7 {[%clk 0:01:07.8]} 15. e5 {[%clk 0:01:22]}
15... Nxd5 {[%clk 0:00:54]} 16. Ng3 {[%clk 0:01:16.9]} 16... Qg6 {[%clk
0:00:49.2]} 17. Bd3 {[%clk 0:01:14.4]} 17... Qc6 {[%clk 0:00:43.1]} 18. Nf5
{[%clk 0:01:03.2]} 18... O-O {[%clk 0:00:31.4]} 19. Be4 {[%clk 0:01:02.2]} 19...
Qe6 {[%clk 0:00:19.6]} 20. Qxd5 {[%clk 0:00:56.9]} 20... Qxd5 {[%clk 0:00:18.5]}
21. Nxe7+ {[%clk 0:00:54.2]} 21... Kh8 {[%clk 0:00:18.8]} 22. Nxd5 {[%clk
0:00:55.1]} 22... Nc6 {[%clk 0:00:16.8]} 23. f4 {[%clk 0:00:51.6]} 23... b5
{[%clk 0:00:13.4]} 24. Nd6 {[%clk 0:00:51.3]} 24... b4 {[%clk 0:00:10.1]} 25.
O-O {[%clk 0:00:49.5]} 25... Ba6 {[%clk 0:00:10.2]} 26. Rfe1 {[%clk 0:00:47.2]}
26... h6 {[%clk 0:00:09.6]} 27. Bh4 {[%clk 0:00:45.9]} 27... Nd4 {[%clk
0:00:10]} 28. Rac1 {[%clk 0:00:38.7]} 28... Ne2+ {[%clk 0:00:06.7]} 29. Rxe2
{[%clk 0:00:37.7]} 29... Bxe2 {[%clk 0:00:07.6]} 30. Be7 {[%clk 0:00:32.5]}
30... Rfb8 {[%clk 0:00:07.1]} 31. Nc7 {[%clk 0:00:30.4]} 31... b3 {[%clk
0:00:06.4]} 32. axb3 {[%clk 0:00:29.4]} 32... a5 {[%clk 0:00:04.5]} 33. Nxa8
{[%clk 0:00:28.2]} 33... Rxa8 {[%clk 0:00:05.4]} 34. Bxa8 {[%clk 0:00:27.7]}
34... a4 {[%clk 0:00:04.1]} 35. bxa4 {[%clk 0:00:27.3]} 1-0